bitfinex/quotes_BTCUSD_20241222
["timestamp","ask_amount","ask_price","bid_price","bid_amount"]
[1734849362199,7.5e-07,96586.0,96585.0,0.75498374]
[1734849363484,7.5e-07,96586.0,96585.0,0.76398374]
[1734849364056,8.56e-05,96606.0,96585.0,0.76398374]
[1734849364057,8.56e-05,96606.0,96605.0,0.292028]
[1734849364316,0.00062882,96606.0,96605.0,0.5433364]
[1734849364552,0.00062882,96606.0,96605.0,0.5487231]
[1734849364723,0.00062882,96606.0,96605.0,0.4362417]
[1734849365365,0.00062882,96606.0,96605.0,0.4372417]
[1734849365568,0.00062882,96606.0,96605.0,0.5372417]
[1734849365770,0.00062882,96606.0,96605.0,0.5362417]
[1734849365984,0.049,96642.0,96625.0,0.206985]
[1734849366185,0.00014754,96626.0,96625.0,0.206985]
[1734849366387,0.00010754,96626.0,96625.0,0.2123717]
[1734849368112,0.00010754,96626.0,96625.0,0.22487799]
[1734849370041,0.00010754,96626.0,96625.0,0.22987799]
[1734849370790,0.00010754,96626.0,96625.0,0.16897248]
[1734849371025,0.00010754,96626.0,96625.0,0.02289299]
[1734849371433,0.00010754,96626.0,96625.0,0.2193717]
[1734849371766,0.00010754,96626.0,96625.0,0.2136584]
[1734849371931,0.00010754,96626.0,96625.0,0.2082717]
[1734849373054,0.00010754,96626.0,96625.0,0.20070235]
[1734849373241,0.00010754,96626.0,96625.0,0.20570235]
[1734849373546,0.00010754,96626.0,96625.0,0.20070235]
[1734849373723,0.00010754,96626.0,96625.0,0.20270235]
[1734849374104,0.00010754,96626.0,96625.0,0.20070235]
[1734849374512,0.00010754,96626.0,96625.0,0.20970235]
[1734849374713,0.00010754,96626.0,96625.0,0.20270235]
[1734849374914,0.00010754,96626.0,96625.0,0.20070235]
[1734849375134,0.00010754,96626.0,96625.0,0.20370235]
[1734849376181,0.00010754,96626.0,96625.0,0.21170235]
[1734849376510,0.00010754,96626.0,96625.0,0.20370235]
[1734849376797,0.00010754,96626.0,96625.0,0.20470235]
[1734849376944,0.00010754,96626.0,96625.0,4.20470235]
[1734849377208,0.00010754,96626.0,96625.0,4.20270235]
[1734849377417,0.00010754,96626.0,96625.0,4.20470235]
[1734849377644,0.00010754,96626.0,96625.0,4.20270235]
[1734849377798,0.00010754,96626.0,96625.0,4.20070235]
[1734849377991,0.00010754,96626.0,96625.0,4.20270235]
[1734849379402,0.00010754,96626.0,96625.0,4.20070235]
[1734849379803,0.00010754,96626.0,96625.0,4.20270235]
[1734849380022,0.00010754,96626.0,96625.0,4.20070235]
[1734849380235,0.00010754,96626.0,96625.0,4.20270235]
[1734849380451,0.00010754,96626.0,96625.0,4.20470235]
[1734849380604,0.00010754,96626.0,96625.0,4.20487355]
[1734849380813,0.00010754,96626.0,96625.0,4.20087355]
[1734849381127,0.00010754,96626.0,96625.0,4.20287355]
[1734849381331,0.00010754,96626.0,96625.0,4.20087355]
[1734849382640,0.076,96633.0,96632.0,0.20697]
[1734849383899,0.076,96633.0,96632.0,0.21597]
[1734849389814,0.076,96633.0,96632.0,0.2261403]
[1734849390014,0.076,96633.0,96632.0,0.2231403]
[1734849390173,0.076,96633.0,96632.0,0.2171403]
[1734849390374,0.076,96633.0,96632.0,0.2181403]
[1734849391750,0.076,96633.0,96632.0,0.2211403]
[1734849391966,0.076,96633.0,96632.0,0.2231403]
[1734849392476,0.0760856,96633.0,96632.0,0.2231403]
[1734849393269,0.0760856,96633.0,96632.0,0.2171403]
[1734849393673,8.56e-05,96633.0,96632.0,0.2181403]
[1734849394081,8.56e-05,96633.0,96632.0,0.2171403]
[1734849394275,8.56e-05,96633.0,96632.0,0.2181403]
[1734849395087,8.56e-05,96633.0,96632.0,0.2171403]
[1734849395494,8.56e-05,96633.0,96632.0,0.2181403]
[1734849396719,8.56e-05,96633.0,96632.0,0.2171403]
[1734849396925,8.56e-05,96633.0,96632.0,0.2181403]
[1734849397295,8.56e-05,96633.0,96632.0,0.2171403]
[1734849397929,8.56e-05,96633.0,96632.0,0.2181403]
[1734849399061,0.0797,96650.0,96648.0,0.206936]
[1734849399386,0.0497,96653.0,96648.0,0.3312444]
[1734849400594,0.0497,96653.0,96648.0,0.67171374]
[1734849402751,0.0497,96653.0,96648.0,0.68389369]
[1734849403864,0.0497,96653.0,96648.0,0.68489369]
[1734849404016,0.0497,96653.0,96648.0,0.68789369]
[1734849404348,0.0497,96653.0,96648.0,0.34142435]
[1734849404483,0.0797,96659.0,96648.0,0.49142435]
[1734849404689,0.0797,96659.0,96648.0,0.49942435]
[1734849405165,0.0797,96659.0,96648.0,0.49742435]
[1734849405466,0.0797,96659.0,96648.0,0.49942435]
[1734849405946,0.0797,96659.0,96648.0,0.49342435]
[1734849406174,0.0797,96659.0,96649.0,0.15]
[1734849406376,0.07986286,96659.0,96658.0,0.229915]
[1734849407721,0.07986286,96659.0,96658.0,0.233915]
[1734849407959,0.07986286,96659.0,96658.0,0.230915]
[1734849408366,0.07986286,96659.0,96658.0,0.32189215]
[1734849408762,0.07986286,96659.0,96658.0,0.32289215]
[1734849409275,0.07986286,96659.0,96658.0,0.32589215]
[1734849409731,0.07986286,96659.0,96658.0,0.230915]
[1734849409959,0.07986286,96659.0,96658.0,0.214915]
[1734849410315,0.07986286,96659.0,96658.0,0.218915]
[1734849410522,0.07986286,96659.0,96658.0,0.215915]
[1734849410814,0.00016286,96659.0,96658.0,0.217915]
[1734849411015,0.00016286,96659.0,96658.0,0.218915]
[1734849412242,0.00016286,96659.0,96658.0,0.22918225]
[1734849412759,0.00016286,96659.0,96658.0,0.22618225]
[1734849412964,0.00016286,96659.0,96658.0,0.22818225]
[1734849413320,0.00016286,96659.0,96658.0,0.22918225]
[1734849413792,0.00016286,96659.0,96658.0,0.22518225]
[1734849414146,0.00016286,96659.0,96658.0,0.22918225]
[1734849414346,0.00016286,96659.0,96658.0,0.218915]
[1734849416227,0.00016286,96659.0,96658.0,0.214915]
[1734849416454,0.00016286,96659.0,96658.0,0.217915]
[1734849416870,0.00016286,96659.0,96658.0,0.216915]
[1734849417275,0.00016286,96659.0,96658.0,0.215915]
[1734849417889,0.00016286,96659.0,96658.0,0.217915]
[1734849419501,0.07656286,96659.0,96658.0,0.217915]
[1734849421306,0.07656286,96659.0,96658.0,0.215915]
[1734849421512,0.07656286,96659.0,96658.0,0.217915]
[1734849422067,0.07656286,96659.0,96658.0,0.216915]
[1734849422627,0.07656286,96659.0,96658.0,0.217915]
[1734849422820,0.07656286,96659.0,96658.0,0.215915]
[1734849423033,0.07580077,96659.0,96658.0,0.214915]
[1734849423795,0.07580077,96659.0,96658.0,0.217915]
[1734849424096,0.07580077,96659.0,96658.0,0.215915]
[1734849424321,0.07580077,96659.0,96658.0,0.217915]
[1734849425182,0.07580077,96659.0,96658.0,0.216915]
[1734849425379,0.07580077,96659.0,96658.0,0.217915]
[1734849425873,0.07580077,96659.0,96658.0,0.215915]
[1734849426072,0.07580077,96659.0,96658.0,0.214915]
[1734849426205,0.07580077,96659.0,96658.0,0.215915]
[1734849426617,0.07580077,96659.0,96658.0,0.192915]
[1734849426820,0.07580077,96659.0,96658.0,0.193915]
[1734849427018,0.07580077,96659.0,96658.0,0.192915]
[1734849427569,0.07580077,96659.0,96658.0,0.194915]
[1734849427724,0.07580077,96659.0,96658.0,0.192915]
[1734849428365,0.07580077,96659.0,96658.0,0.191915]
[1734849429111,0.07580077,96659.0,96658.0,0.192915]
[1734849429306,0.07580077,96659.0,96658.0,0.191915]
[1734849429708,0.07580077,96659.0,96658.0,0.192915]
[1734849430124,0.07580077,96659.0,96658.0,0.1930862]
[1734849430505,0.07588637,96659.0,96658.0,0.1920862]
[1734849431409,0.07588637,96659.0,96658.0,0.1930862]
[1734849434162,0.07588637,96659.0,96658.0,0.1920862]
[1734849434568,0.07588637,96659.0,96658.0,0.1950862]
[1734849434744,0.07588637,96659.0,96658.0,0.1930862]
[1734849435395,8.56e-05,96659.0,96658.0,0.1920862]
[1734849435620,8.56e-05,96659.0,96658.0,0.1930862]
[1734849436316,8.56e-05,96659.0,96658.0,0.1940862]
[1734849436873,8.56e-05,96659.0,96658.0,0.1920862]
[1734849437076,8.56e-05,96659.0,96658.0,0.1960862]
[1734849437548,8.56e-05,96659.0,96658.0,0.1920862]
[1734849437724,8.56e-05,96659.0,96658.0,0.1950862]
[1734849438178,8.56e-05,96659.0,96658.0,0.1920862]
[1734849438326,8.56e-05,96659.0,96658.0,0.1960862]
[1734849438534,8.56e-05,96659.0,96658.0,0.1970862]
[1734849438713,8.56e-05,96659.0,96658.0,0.1930862]
[1734849438917,8.56e-05,96659.0,96658.0,0.1920862]
[1734849439342,8.56e-05,96659.0,96658.0,0.1930862]
[1734849440145,8.56e-05,96659.0,96658.0,0.1960862]
[1734849440323,8.56e-05,96659.0,96658.0,0.1930862]
[1734849440687,8.56e-05,96659.0,96658.0,0.1970862]
[1734849440884,8.56e-05,96659.0,96658.0,0.1960862]
[1734849441165,8.56e-05,96659.0,96658.0,0.1940862]
[1734849441392,8.56e-05,96659.0,96658.0,0.1970862]
[1734849441722,8.56e-05,96659.0,96658.0,0.1950862]
[1734849442050,0.0753856,96659.0,96658.0,0.0041712]
[1734849442272,0.1232856,96659.0,96658.0,0.0041712]
[1734849443416,0.1232856,96659.0,96658.0,0.0011712]
[1734849443717,0.1232856,96659.0,96658.0,0.0051712]
[1734849444071,0.224594,96659.0,96658.0,0.0041712]
[1734849444453,0.224594,96659.0,96658.0,0.0061712]
[1734849445029,0.23513309,96659.0,96658.0,0.0001712]
[1734849445231,0.23513309,96659.0,96658.0,0.0011712]
[1734849445765,0.23513309,96659.0,96658.0,0.0001712]
[1734849446200,0.224594,96659.0,96658.0,0.0001712]
[1734849446589,0.1232856,96659.0,96658.0,0.0001712]
[1734849447360,0.1232856,96659.0,96658.0,0.0021712]
[1734849447590,0.1232856,96659.0,96658.0,0.0031712]
[1734849447947,0.1232856,96659.0,96658.0,0.0011712]
[1734849448482,0.1232856,96659.0,96658.0,0.0021712]
[1734849449103,0.1232856,96659.0,96658.0,0.0011712]
[1734849449324,0.1232856,96659.0,96658.0,0.0031712]
[1734849449656,0.1232856,96659.0,96658.0,0.0021712]
[1734849450074,0.1232856,96659.0,96658.0,0.0041712]
[1734849450271,0.1232856,96659.0,96658.0,0.0021712]
[1734849450491,0.1232856,96659.0,96658.0,0.0001712]
[1734849450772,0.1232856,96659.0,96658.0,0.0051712]
[1734849451408,0.1232856,96659.0,96658.0,0.0001712]
[1734849451619,0.1232856,96659.0,96658.0,0.0021712]
[1734849451790,0.1232856,96659.0,96658.0,0.0061712]
[1734849453145,0.1232856,96659.0,96658.0,0.0021712]
[1734849453354,0.1232856,96659.0,96658.0,0.0061712]
[1734849453757,0.1232856,96659.0,96658.0,0.0041712]
[1734849454134,0.1232856,96659.0,96658.0,0.0061712]
[1734849455750,0.1232856,96659.0,96658.0,0.0041712]
[1734849456545,0.1232856,96659.0,96658.0,0.0001712]
[1734849456943,0.1232856,96659.0,96658.0,0.0041712]
[1734849457155,0.1232856,96659.0,96658.0,0.0001712]
[1734849457358,0.1232856,96659.0,96658.0,0.0021712]
[1734849457780,0.1232856,96659.0,96658.0,0.0001712]
[1734849459049,0.1232856,96659.0,96658.0,0.0011712]
[1734849459724,0.1232856,96659.0,96658.0,0.0031712]
[1734849461421,0.1232856,96659.0,96658.0,0.0011712]
[1734849461631,0.1232856,96659.0,96658.0,0.0001712]
[1734849461828,0.1232856,96659.0,96658.0,0.0011712]
[1734849462877,0.1232856,96659.0,96658.0,0.0041712]
[1734849465269,0.1232856,96659.0,96658.0,0.0031712]
[1734849466027,0.1232856,96659.0,96658.0,0.0001712]
[1734849466543,0.1232856,96659.0,96658.0,0.0031712]
[1734849466741,0.1232856,96659.0,96658.0,0.0011712]
[1734849466945,0.1232856,96659.0,96658.0,0.0041712]
[1734849467170,0.1232856,96659.0,96658.0,0.0031712]
[1734849467448,0.1232856,96659.0,96658.0,0.0041712]
[1734849468254,0.1232856,96659.0,96658.0,0.0031712]
[1734849468706,0.1232856,96659.0,96658.0,0.0051712]
[1734849469201,0.1232856,96659.0,96658.0,0.0021712]
[1734849469405,0.1232856,96659.0,96658.0,0.0071712]
[1734849470501,0.1232856,96659.0,96658.0,0.0051712]
[1734849472293,0.1232856,96659.0,96658.0,0.0001712]
[1734849472672,0.1232856,96659.0,96658.0,0.0011712]
[1734849472895,0.1232856,96659.0,96658.0,0.0001712]
[1734849473296,0.1232856,96659.0,96658.0,0.0051712]
[1734849473557,0.1232856,96659.0,96658.0,0.0001712]
[1734849473860,0.1232856,96659.0,96658.0,0.0031712]
[1734849474136,0.1232856,96659.0,96658.0,0.0001712]
[1734849474445,0.1232856,96659.0,96658.0,0.0011712]
[1734849474914,0.1232856,96659.0,96658.0,0.0001712]
[1734849475844,0.1232856,96659.0,96658.0,0.0041712]
[1734849476044,0.1232856,96659.0,96658.0,0.0001712]
[1734849482660,0.224594,96659.0,96658.0,0.0001712]
[1734849483495,0.224594,96659.0,96658.0,0.0031712]
[1734849483701,0.224594,96659.0,96658.0,0.0081712]
[1734849483899,0.224594,96659.0,96658.0,0.0031712]
[1734849484104,0.224594,96659.0,96658.0,0.0001712]
[1734849484313,0.224594,96659.0,96658.0,0.0031712]
[1734849485811,0.224594,96659.0,96658.0,0.0011712]
[1734849486210,0.226594,96659.0,96658.0,0.0001712]
[1734849486331,0.224594,96659.0,96658.0,0.0011712]
[1734849486840,0.324594,96659.0,96654.0,3.0]
[1734849487041,0.1,96655.0,96654.0,3.0]
[1734849487262,0.3301084,96655.0,96654.0,3.0]
[1734849488121,0.3301084,96655.0,96654.0,2.95]
[1734849488325,0.4801084,96655.0,96654.0,2.95]
[1734849488469,0.4801084,96655.0,96654.0,2.8219]
[1734849489186,0.978034,96655.0,96654.0,2.8219]
[1734849489567,1.078034,96655.0,96654.0,2.8219]
[1734849489775,1.078034,96655.0,96654.0,2.8239]
[1734849489975,1.078034,96655.0,96654.0,2.8229]
[1734849490184,1.078034,96655.0,96654.0,2.8220714]
[1734849490525,1.079034,96655.0,96654.0,2.8230714]
[1734849490772,0.89169295,96655.0,96654.0,2.7945114]
[1734849490952,0.89269295,96655.0,96654.0,2.7955114]
[1734849491166,0.89269295,96655.0,96654.0,2.7905114]
[1734849492558,0.91569295,96655.0,96654.0,2.7905114]
[1734849492767,0.91569295,96655.0,96654.0,2.6624114]
[1734849496035,0.89269295,96655.0,96654.0,2.6624114]
[1734849498223,0.5811084,96655.0,96654.0,2.6624114]
[1734849502581,0.5811941,96655.0,96654.0,2.6624114]
[1734849505627,0.67397678,96655.0,96654.0,2.6624114]
[1734849507144,0.5811941,96655.0,96654.0,2.6624114]
[1734849508064,0.6483351,96655.0,96654.0,2.42591132]
[1734849508297,0.6041941,96655.0,96654.0,2.21912707]
[1734849508521,0.6041941,96655.0,96654.0,2.15705107]
[1734849508745,0.6041941,96655.0,96654.0,2.13635907]
[1734849508973,0.6041941,96655.0,96654.0,2.10696707]
[1734849509210,0.62353907,96655.0,96654.0,2.10696707]
[1734849509464,0.62253907,96655.0,96654.0,2.04440994]
[1734849509662,0.62753907,96655.0,96654.0,1.98333394]
[1734849509912,0.62753907,96655.0,96654.0,1.96264194]
[1734849510155,0.94893719,96655.0,96654.0,1.96264194]
[1734849510931,0.95293719,96655.0,96654.0,1.96264194]
[1734849511135,3.02124559,96655.0,96654.0,1.60435417]
[1734849511348,3.15327157,96655.0,96654.0,1.07484774]
[1734849511543,3.15327157,96655.0,96654.0,0.93118774]
[1734849511752,3.15327157,96655.0,96654.0,0.92194974]
[1734849511976,3.15327157,96655.0,96654.0,0.86430274]
[1734849512186,3.05196317,96655.0,96654.0,0.78335374]
[1734849512388,3.04696317,96655.0,96654.0,0.75032288]
[1734849512595,2.81522825,96655.0,96654.0,0.40657665]
[1734849512788,2.83122825,96655.0,96654.0,0.40857665]
[1734849513019,2.83122825,96655.0,96654.0,0.35098665]
[1734849513256,2.91851942,96655.0,96654.0,0.324068]
[1734849513460,2.91851942,96655.0,96654.0,0.303376]
[1734849513662,2.91651942,96655.0,96654.0,0.220604]
[1734849513813,2.81521102,96655.0,96654.0,0.220604]
[1734849514427,2.81521102,96655.0,96654.0,0.19991]
[1734849514635,2.81521102,96655.0,96654.0,0.179216]
[1734849514968,2.82421102,96655.0,96654.0,0.10707511]
[1734849515316,2.82421102,96655.0,96654.0,0.09907511]
[1734849515532,0.2,96649.0,96648.0,3.1e-07]
[1734849515717,0.4743084,96649.0,96648.0,3.1e-07]
[1734849515936,0.49365337,96649.0,96648.0,3.1e-07]
[1734849516913,0.406981,96627.0,96625.0,0.0001712]
[1734849517121,0.6812894,96627.0,96625.0,0.0001712]
[1734849517337,0.70063437,96627.0,96625.0,0.0001712]
[1734849518142,0.70068859,96627.0,96625.0,0.0001712]
[1734849518938,0.70968859,96627.0,96626.0,0.0011712]
[1734849520726,0.71997612,96627.0,96626.0,0.0011712]
[1734849521636,0.74107741,96627.0,96626.0,0.0011712]
[1734849526320,1.06628965,96627.0,96626.0,0.0011712]
[1734849527644,0.74107741,96627.0,96626.0,0.0011712]
[1734849530224,1.06660778,96627.0,96626.0,0.0011712]
[1734849530556,1.04360778,96627.0,96626.0,0.0011712]
[1734849533391,0.94360778,96627.0,96626.0,0.0011712]
[1734849533721,1.25410539,96627.0,96626.0,0.1283712]
[1734849533903,1.15410539,96627.0,96626.0,0.1283712]
[1734849534091,1.25410539,96627.0,96626.0,0.1283712]
[1734849534319,0.69712439,96627.0,96626.0,0.1283712]
[1734849534536,0.68683686,96627.0,96626.0,0.1283712]
[1734849534936,0.12970759,96627.0,96626.0,0.1283712]
[1734849535351,0.10136262,96627.0,96626.0,0.1273712]
[1734849535557,0.10536262,96627.0,96626.0,0.1273712]
[1734849535892,0.10336262,96627.0,96626.0,0.1273712]
[1734849536199,0.10436262,96627.0,96626.0,0.1273712]
[1734849536503,0.10236262,96627.0,96626.0,0.1273712]
[1734849536784,0.10536262,96627.0,96626.0,0.13199797]
[1734849537232,0.10236262,96627.0,96626.0,0.13199797]
[1734849537713,0.10136262,96627.0,96626.0,0.13199797]
[1734849538753,0.10536262,96627.0,96626.0,0.13199797]
[1734849539026,0.10136262,96627.0,96626.0,0.13199797]
[1734849540020,0.10136262,96627.0,96626.0,0.13299797]
[1734849540214,0.10136262,96627.0,96626.0,0.13199797]
[1734849541282,0.10136262,96627.0,96626.0,0.13399797]
[1734849542393,0.10136262,96627.0,96626.0,0.13499797]
[1734849542701,0.10136262,96627.0,96626.0,0.13299797]
[1734849543043,0.10136262,96627.0,96626.0,0.13399797]
[1734849543475,0.10136262,96627.0,96626.0,0.13299797]
[1734849543689,0.10136262,96627.0,96626.0,0.13499797]
[1734849544083,0.10136262,96627.0,96626.0,0.13399797]
[1734849546097,0.10136262,96627.0,96626.0,0.13199797]
[1734849548393,0.10136262,96627.0,96626.0,0.13299797]
[1734849549415,0.10136262,96627.0,96626.0,0.13499797]
[1734849549695,0.10136262,96627.0,96626.0,0.13299797]
[1734849550115,0.10136262,96627.0,96626.0,0.13199797]
[1734849550442,0.10136262,96627.0,96626.0,0.13499797]
[1734849551257,0.10136262,96627.0,96626.0,0.13699797]
[1734849551757,5.422e-05,96627.0,96626.0,0.13699797]
[1734849555478,5.422e-05,96627.0,96626.0,0.1323712]
[1734849564944,0.10136262,96627.0,96626.0,0.1323712]
[1734849568261,0.10136262,96627.0,96626.0,0.1303712]
[1734849568459,0.10136262,96627.0,96626.0,0.1273712]
[1734849568889,0.10136262,96627.0,96626.0,0.1283712]
[1734849569586,0.10136262,96627.0,96626.0,0.1273712]
[1734849569968,0.10236262,96627.0,96626.0,0.1273712]
[1734849571473,0.11260095,96627.0,96626.0,0.1273712]
[1734849576347,0.11260095,96627.0,96626.0,0.0001712]
[1734849577921,0.43869982,96627.0,96626.0,0.0001712]
[1734849578297,0.43769982,96627.0,96626.0,0.0001712]
[1734849578714,0.43869982,96627.0,96626.0,0.0001712]
[1734849582268,0.43869982,96627.0,96626.0,0.0785712]
[1734849583069,0.25217868,96627.0,96626.0,0.0785712]
[1734849585842,0.43896782,96627.0,96626.0,0.0785712]
[1734849587099,0.11260095,96627.0,96626.0,0.0785712]
[1734849588108,0.25216208,96627.0,96626.0,0.0785712]
[1734849592711,0.62465226,96627.0,96626.0,0.0785712]
[1734849595363,0.25213497,96627.0,96626.0,0.0785712]
[1734849596382,0.11260095,96627.0,96626.0,0.0785712]
[1734849597942,0.25213497,96627.0,96626.0,0.0785712]
[1734849599318,0.11260095,96627.0,96626.0,0.0785712]
[1734849601897,0.20561804,96627.0,96626.0,0.0785712]
[1734849603405,0.11260095,96627.0,96626.0,0.0785712]
[1734849604571,0.25213497,96627.0,96626.0,0.0785712]
[1734849605846,0.11260095,96627.0,96626.0,0.0785712]
[1734849606928,0.43940675,96627.0,96626.0,0.0785712]
[1734849607328,0.32786002,96627.0,96626.0,0.1256712]
[1734849608106,0.19976002,96627.0,96626.0,0.13618779]
[1734849608703,0.09311263,96634.0,96631.0,0.1206]
[1734849608907,0.09311263,96634.0,96630.0,0.206973]
[1734849609311,0.09311263,96634.0,96633.0,0.0452]
[1734849609532,0.09311263,96634.0,96633.0,0.1206]
[1734849609726,0.09311263,96657.0,96628.0,0.206979]
[1734849609939,0.09311263,96657.0,96644.0,0.206943]
[1734849610138,0.09311263,96657.0,96645.0,0.1206]
[1734849610320,0.01056519,96654.0,96646.0,0.20694]
[1734849610472,0.01056519,96654.0,96645.0,0.1206]
[1734849610677,0.01056519,96654.0,96646.0,0.20694]
[1734849611363,0.0020857,96648.0,96647.0,0.0754]
[1734849611991,0.09311263,96665.0,96647.0,0.1216346]
[1734849612163,0.09311263,96665.0,96648.0,0.63681488]
[1734849612342,0.09311263,96665.0,96651.0,0.1206]
[1734849612516,0.0001,96669.0,96654.0,0.206923]
[1734849612904,0.0001,96669.0,96654.0,0.282323]
[1734849613638,0.0001,96669.0,96654.0,0.286323]
[1734849615290,0.0010857,96655.0,96654.0,0.294323]
[1734849616249,0.0010857,96655.0,96654.0,0.0874]
[1734849617169,0.0010457,96655.0,96654.0,0.0874]
[1734849622415,0.0010457,96655.0,96654.0,0.08696729]
[1734849629898,0.0010457,96655.0,96654.0,0.08713849]
[1734849631712,0.0010457,96655.0,96654.0,0.09592159]
[1734849649686,0.1023541,96655.0,96654.0,0.0209543]
[1734849649905,0.1023541,96655.0,96654.0,0.0121712]
[1734849650728,0.1013541,96655.0,96654.0,0.0001712]
[1734849651085,0.1013541,96655.0,96654.0,0.0111712]
[1734849651086,0.12175585,96655.0,96654.0,0.0111712]
[1734849651293,0.12075585,96655.0,96654.0,0.0041712]
[1734849651896,0.1013541,96655.0,96654.0,0.0001712]
[1734849652099,0.24102305,96655.0,96654.0,0.0001712]
[1734849652811,0.24102305,96655.0,96654.0,0.0021712]
[1734849653025,0.25143756,96655.0,96654.0,0.0021712]
[1734849653232,0.25143756,96655.0,96654.0,0.0051712]
[1734849653406,0.25143756,96655.0,96654.0,0.0021712]
[1734849653622,0.11176861,96655.0,96654.0,0.0021712]
[1734849654204,0.11576861,96655.0,96654.0,0.0021712]
[1734849654462,0.68398421,96655.0,96654.0,0.0021712]
[1734849654729,0.67998421,96655.0,96654.0,0.0001712]
[1734849654944,0.68498421,96655.0,96654.0,0.0001712]
[1734849655349,0.68398421,96655.0,96654.0,0.0001712]
[1734849655683,0.68498421,96655.0,96654.0,0.0001712]
[1734849656359,0.67998421,96655.0,96654.0,0.0001712]
[1734849656554,0.68398421,96655.0,96654.0,0.0001712]
[1734849656871,0.44838531,96655.0,96654.0,0.0001712]
[1734849657356,0.45238531,96655.0,96654.0,0.0001712]
[1734849657919,0.45338531,96655.0,96654.0,0.0001712]
[1734849658329,0.11676861,96655.0,96654.0,0.0001712]
[1734849659118,0.21676861,96655.0,96654.0,0.0001712]
[1734849659319,0.23976861,96655.0,96654.0,0.0001712]
[1734849659522,0.57638531,96655.0,96654.0,0.0001712]
[1734849660488,0.57238531,96655.0,96654.0,0.0001712]
[1734849660899,0.57538531,96655.0,96654.0,0.0001712]
[1734849661101,0.72538531,96655.0,96654.0,0.0001712]
[1734849661304,0.72638531,96655.0,96654.0,0.0001712]
[1734849665694,0.90488531,96655.0,96654.0,0.0001712]
[1734849667988,0.92425031,96655.0,96654.0,0.0001712]
[1734849669334,0.90488531,96655.0,96654.0,0.0001712]
[1734849676371,0.82638531,96655.0,96654.0,0.0001712]
[1734849677898,1.10507389,96655.0,96654.0,0.0001712]
[1734849678949,0.1,96641.0,96632.0,0.0808]
[1734849679143,0.206968,96633.0,96632.0,0.0808]
[1734849679342,0.3082764,96633.0,96632.0,0.0808]
[1734849679567,0.32765761,96633.0,96632.0,0.0808]
[1734849680162,0.3082764,96633.0,96632.0,0.0808]
[1734849681194,0.32766338,96633.0,96632.0,0.0838]
[1734849681417,0.32866338,96633.0,96632.0,0.0838]
[1734849681639,0.32766338,96633.0,96632.0,0.0838]
[1734849682088,0.33814791,96633.0,96632.0,0.0838]
[1734849682489,0.33814791,96633.0,96632.0,0.0808]
[1734849682887,0.33914791,96633.0,96632.0,0.0808]
[1734849685392,0.31976093,96633.0,96632.0,0.0808]
[1734849685582,0.206981,96627.0,96626.0,0.00033406]
[1734849685838,0.3082894,96627.0,96626.0,0.00033406]
[1734849686045,0.32768284,96627.0,96626.0,0.00033406]
[1734849687036,0.32768284,96627.0,96626.0,0.00233406]
[1734849687498,0.32768284,96627.0,96626.0,0.00333406]
[1734849692804,0.12070184,96627.0,96626.0,0.00333406]
[1734849693163,0.12070184,96627.0,96626.0,0.08133406]
[1734849694330,0.1013084,96627.0,96626.0,0.08133406]
[1734849695140,0.1013084,96627.0,96626.0,0.09020974]
[1734849695948,0.09289094,96634.0,96627.0,0.0498]
[1734849696360,0.1013084,96633.0,96628.0,0.078]
[1734849696579,0.19419934,96633.0,96628.0,0.08687568]
[1734849696799,0.19419934,96633.0,96628.0,0.078]
[1734849697398,0.01940416,96632.0,96628.0,0.078]
[1734849697528,0.1013084,96631.0,96628.0,0.078]
[1734849697749,0.1013084,96631.0,96629.0,0.00887568]
[1734849698119,0.001,96633.0,96632.0,0.0755]
[1734849698227,0.1023084,96633.0,96632.0,0.0755]
[1734849698643,0.12170936,96633.0,96632.0,0.08437568]
[1734849699309,0.12070936,96633.0,96632.0,0.08437568]
[1734849700403,0.27170936,96633.0,96632.0,0.00887568]
[1734849700701,0.37170936,96633.0,96632.0,0.00887568]
[1734849700990,0.206977,96629.0,96623.0,0.06650526]
[1734849701190,0.413962,96627.0,96623.0,0.06650526]
[1734849701433,0.1013084,96626.0,96623.0,0.06650526]
[1734849701605,0.12070936,96626.0,96623.0,0.06650526]
[1734849702135,0.01940096,96625.0,96623.0,0.06650526]
[1734849702370,0.12070936,96624.0,96623.0,0.06650526]
[1734849704867,0.12070936,96624.0,96623.0,0.07150526]
[1734849705213,0.1013084,96624.0,96623.0,0.07150526]
[1734849706392,0.24064481,96624.0,96623.0,0.07150526]
[1734849711379,0.26004413,96624.0,96623.0,0.07150526]
[1734849711900,0.21382617,96624.0,96623.0,0.06950526]
[1734849712127,0.21382617,96624.0,96623.0,0.06850526]
[1734849712341,0.19442685,96624.0,96623.0,0.06850526]
[1734849712545,0.19442685,96624.0,96623.0,0.07150526]
[1734849712754,0.19442685,96624.0,96623.0,0.06850526]
[1734849713645,0.1013084,96624.0,96623.0,0.06650526]
[1734849713819,0.1013084,96624.0,96623.0,0.06667666]
[1734849714034,0.1013941,96624.0,96623.0,0.06667666]
[1734849714452,0.1013941,96624.0,96623.0,0.07167666]
[1734849714653,0.1013941,96624.0,96623.0,0.06867666]
[1734849714822,0.1013941,96624.0,96623.0,0.06667666]
[1734849715033,0.1013941,96624.0,96623.0,0.06967666]
[1734849715192,0.1013941,96624.0,96623.0,0.07167666]
[1734849715707,0.1013941,96624.0,96623.0,0.07467666]
[1734849716018,0.1013941,96624.0,96623.0,0.06867666]
[1734849716220,0.19451874,96624.0,96623.0,0.06867666]
[1734849716644,0.19451874,96624.0,96623.0,0.06967666]
[1734849717052,0.19451874,96624.0,96623.0,0.07167666]
[1734849717452,0.19451874,96624.0,96623.0,0.06967666]
[1734849717781,0.09321034,96624.0,96623.0,0.07167666]
[1734849718359,0.09321034,96624.0,96623.0,0.08054532]
[1734849719004,8.57e-05,96624.0,96623.0,0.08054532]
[1734849719874,8.57e-05,96624.0,96623.0,0.12964532]
[1734849734466,0.2513941,96624.0,96623.0,0.01404006]
[1734849734842,0.2513941,96624.0,96623.0,0.0051714]
[1734849735544,0.36166811,96624.0,96623.0,0.0031714]
[1734849735743,0.36166811,96624.0,96623.0,0.0001714]
[1734849736090,0.36166811,96624.0,96623.0,0.0011714]
[1734849736243,0.15,96620.0,96605.0,0.0754714]
[1734849736464,0.1013084,96619.0,96605.0,0.07552562]
[1734849736665,0.12070141,96619.0,96605.0,0.07552562]
[1734849736864,0.207024,96607.0,96606.0,0.00737107]
[1734849737078,0.3083324,96607.0,96605.0,5.422e-05]
[1734849737296,0.12070141,96606.0,96605.0,5.422e-05]
[1734849737478,0.12070141,96606.0,96605.0,0.00105422]
[1734849737903,0.12070141,96606.0,96605.0,0.00405422]
[1734849738306,0.12070141,96606.0,96605.0,0.00105422]
[1734849738683,0.12070141,96606.0,96605.0,0.00405422]
[1734849739402,0.45736146,96606.0,96605.0,0.00305422]
[1734849739605,0.45736146,96606.0,96605.0,0.00405422]
[1734849740210,0.45736146,96606.0,96605.0,0.00305422]
[1734849740386,0.45736146,96606.0,96605.0,5.422e-05]